fUSD/lending_fUSD_20240518
["ID","MTS","AMOUNT","RATE_DAILY","PERIOD"]
[327415371,1716051062598,-500.0,0.00028767,2]
[327415372,1716051062607,-500.0,0.00028767,2]
[327415373,1716051062616,-500.0,0.00028767,2]
[327415374,1716051062625,-556.91,0.00028767,2]
[327415375,1716051062634,-500.0,0.00028767,2]
[327415376,1716051062644,-500.0,0.00028767,2]
[327415377,1716051062653,-500.0,0.00028767,2]
[327415378,1716051062662,-500.0,0.00028767,2]
[327415379,1716051062672,-500.0,0.00028767,2]
[327415380,1716051062682,-500.0,0.00028767,2]
[327415381,1716051062691,-500.0,0.00028767,2]
[327415382,1716051062701,-500.0,0.00028767,2]
[327415383,1716051062710,-500.0,0.00028767,2]
[327415384,1716051062720,-500.0,0.00028767,2]
[327415385,1716051062730,-500.0,0.00028767,2]
[327415386,1716051062741,-947.18,0.00028767,2]
[327415387,1716051062752,-500.0,0.00028767,2]
[327415388,1716051062761,-500.0,0.00028767,2]
[327415389,1716051062770,-574.35,0.00028767,2]
[327415390,1716051062780,-500.0,0.00028767,2]
[327415391,1716051062884,-500.0,0.00028767,2]
[327415392,1716051062895,-801.26,0.00028767,2]
[327415393,1716051062904,-500.0,0.00028767,2]
[327415394,1716051062914,-500.0,0.00028767,2]
[327415395,1716051062924,-500.0,0.00028767,2]
[327415396,1716051062934,-500.0,0.00028767,2]
[327415397,1716051062944,-500.0,0.00028767,2]
[327415398,1716051062954,-500.0,0.00028767,2]
[327415399,1716051062964,-500.0,0.00028767,2]
[327415400,1716051062973,-500.0,0.00028767,2]
[327415401,1716051062982,-500.0,0.00028767,2]
[327415402,1716051062991,-500.0,0.00028767,2]
[327415403,1716051063000,-647.38,0.00028767,2]
[327415404,1716051063010,-1383.44,0.00028767,2]
[327415405,1716051063019,-500.0,0.00028767,2]
[327415406,1716051063028,-512.7,0.00028767,2]
[327415407,1716051063037,-575.76,0.00028767,2]
[327415408,1716051063047,-500.0,0.00028767,2]
[327415409,1716051063056,-500.0,0.00028767,2]
[327415410,1716051063065,-500.0,0.00028767,2]
[327415411,1716051063074,-500.0,0.00028767,2]
[327415412,1716051063084,-500.0,0.00028767,2]
[327415413,1716051063096,-500.0,0.00028767,2]
[327415414,1716051063106,-500.0,0.00028767,2]
[327415415,1716051063116,-637.15,0.00028767,2]
[327415416,1716051063126,-3328.5,0.00028767,2]
[327415417,1716051063136,-500.0,0.00028767,2]
[327415418,1716051063145,-1552.68,0.00028767,2]
[327415419,1716051063154,-202.7,0.00028767,2]
[327415420,1716051063164,-1494.38,0.00028767,2]
[327415421,1716051063174,-500.0,0.00028767,2]
[327415422,1716051063184,-500.0,0.00028767,2]
[327415423,1716051063194,-500.0,0.00028767,2]
[327415424,1716051063203,-1121.32,0.00028767,2]
[327415425,1716051063212,-500.0,0.00028767,2]
[327415426,1716051063222,-500.0,0.00028767,2]
[327415427,1716051063231,-500.0,0.00028767,2]
[327415428,1716051063241,-500.0,0.00028767,2]
[327415429,1716051063250,-500.0,0.00028767,2]
[327415430,1716051063260,-500.0,0.00028767,2]
[327415431,1716051063270,-500.0,0.00028767,2]
[327415432,1716051063279,-2782.31,0.00028767,2]
[327415433,1716051063289,-966.21,0.00028767,2]
[327415434,1716051063298,-730.87,0.00028767,2]
[327415435,1716051063308,-500.0,0.00028767,2]
[327415436,1716051063318,-500.0,0.00028767,2]
[327415437,1716051063328,-579.61,0.00028767,2]
[327415438,1716051063337,-692.9,0.00028767,2]
[327415439,1716051063348,-500.0,0.00028767,2]
[327415440,1716051063358,-500.0,0.00028767,2]
[327415441,1716051063368,-500.0,0.00028767,2]
[327415442,1716051063379,-500.0,0.00028767,2]
[327415443,1716051063388,-500.0,0.00028767,2]
[327415444,1716051063398,-500.0,0.00028767,2]
[327415445,1716051063408,-362.28,0.00028767,2]
[327415446,1716051063417,-500.0,0.00028767,2]
[327415447,1716051063432,-1339.49,0.00029,2]
[327415448,1716051063441,-500.0,0.00029041,2]
[327415449,1716051063451,-152.28318798,0.00029041,2]
[327415450,1716051063465,-413.84850065,0.00029041,2]
[327415451,1716051063474,-500.0,0.00029041,2]
[327415452,1716051063484,-500.0,0.00029041,2]
[327415453,1716051063494,-350.3,0.00029041,2]
[327415454,1716051063505,-500.0,0.00029041,2]
[327415455,1716051063515,-500.0,0.00029041,2]
[327415456,1716051063524,-500.0,0.00029041,2]
[327415457,1716051063535,-500.0,0.00029041,2]
[327415458,1716051063544,-500.0,0.00029041,2]
[327415459,1716051063557,-500.0,0.00029041,2]
[327415460,1716051063567,-500.0,0.00029041,2]
[327415461,1716051063576,-500.0,0.00029041,2]
[327415462,1716051063585,-500.0,0.00029041,2]
[327415463,1716051063594,-500.0,0.00029041,2]
[327415464,1716051063603,-500.0,0.00029041,2]
[327415465,1716051063613,-597.8,0.00029041,2]
[327415466,1716051063622,-500.0,0.00029041,2]
[327415467,1716051063632,-500.0,0.00029041,2]
[327415468,1716051063641,-500.0,0.00029041,2]
[327415469,1716051063651,-500.0,0.00029041,2]
[327415470,1716051063660,-314.6,0.00029041,2]
[327415471,1716051063670,-583.73,0.00029041,2]
[327415472,1716051063679,-500.0,0.00029041,2]
[327415473,1716051063689,-500.0,0.00029041,2]
[327415474,1716051063698,-500.0,0.00029041,2]
[327415475,1716051063707,-500.0,0.00029041,2]
[327415476,1716051063717,-500.0,0.00029041,2]
[327415477,1716051063726,-500.0,0.00029041,2]
[327415478,1716051063735,-1320.18,0.00029041,2]
[327415479,1716051063745,-503.71684629,0.00029041,2]
[327415480,1716051063754,-500.0,0.00029041,2]
[327415481,1716051063764,-500.0,0.00029041,2]
[327415482,1716051063773,-500.0,0.00029041,2]
[327415483,1716051063782,-500.0,0.00029041,2]
[327415484,1716051063791,-500.0,0.00029041,2]
[327415485,1716051063801,-591.44,0.00029041,2]
[327415486,1716051063810,-500.0,0.00029041,2]
[327415487,1716051063820,-176.65,0.00029041,2]
[327415488,1716051063829,-532.73,0.00029041,2]
[327415489,1716051063839,-500.0,0.00029041,2]
[327415490,1716051063849,-500.0,0.00029041,2]
[327415491,1716051063859,-500.0,0.00029041,2]
[327415492,1716051063868,-1744.41,0.00029041,2]
[327415493,1716051063879,-500.0,0.00029041,2]
[327415494,1716051063888,-1203.09,0.00029041,2]
[327415495,1716051063898,-578.82,0.00029041,2]
[327415496,1716051063908,-500.0,0.00029041,2]
[327415497,1716051063918,-500.0,0.00029041,2]
[327415498,1716051063928,-2662.84,0.00029041,2]
[327415499,1716051063937,-604.9,0.00029041,2]
[327415500,1716051063946,-996.79,0.00029041,2]
[327415501,1716051063957,-500.0,0.00029041,2]
[327415502,1716051063968,-916.77,0.00029041,2]
[327415503,1716051063978,-500.0,0.00029041,2]
[327415504,1716051063988,-500.0,0.00029041,2]
[327415505,1716051063997,-927.89,0.00029041,2]
[327415506,1716051064008,-500.0,0.00029041,2]
[327415507,1716051064017,-500.0,0.00029041,2]
[327415508,1716051064027,-1501.66,0.00029041,2]
[327415509,1716051064037,-500.0,0.00029041,2]
[327415510,1716051064047,-459.08,0.00029041,2]
[327415511,1716051064057,-202.35,0.00029041,2]
[327415512,1716051064066,-556.91,0.00029041,2]
[327415513,1716051064076,-500.0,0.00029041,2]
[327415514,1716051064086,-500.0,0.00029041,2]
[327415515,1716051064096,-500.0,0.00029041,2]
[327415516,1716051064106,-500.0,0.00029041,2]
[327415517,1716051064116,-500.0,0.00029041,2]
[327415518,1716051064127,-500.0,0.00029041,2]
[327415519,1716051064136,-534.75,0.00029041,2]
[327415520,1716051064146,-415.64,0.00029041,2]
[327415521,1716051064156,-612.8,0.00029041,2]
[327415522,1716051064166,-298.23,0.00029041,2]
[327415523,1716051064175,-947.18,0.00029041,2]
[327415524,1716051064185,-500.0,0.00029041,2]
[327415525,1716051064194,-445.71,0.00029041,2]
[327415526,1716051064204,-500.0,0.00029041,2]
[327415527,1716051064214,-500.0,0.00029041,2]
[327415528,1716051064224,-801.26,0.00029041,2]
[327415529,1716051064233,-500.0,0.00029041,2]
[327415530,1716051064243,-500.0,0.00029041,2]
[327415531,1716051064253,-500.0,0.00029041,2]
[327415532,1716051064263,-500.0,0.00029041,2]
[327415533,1716051064273,-500.0,0.00029041,2]
[327415534,1716051064283,-500.0,0.00029041,2]
[327415535,1716051064292,-500.0,0.00029041,2]
[327415536,1716051064303,-500.0,0.00029041,2]
[327415537,1716051064312,-500.0,0.00029041,2]
[327415538,1716051064322,-647.38,0.00029041,2]
[327415539,1716051064332,-1383.44,0.00029041,2]
[327415540,1716051064342,-500.0,0.00029041,2]
[327415541,1716051064351,-512.7,0.00029041,2]
[327415542,1716051064361,-500.0,0.00029041,2]
[327415543,1716051064371,-575.76,0.00029041,2]
[327415544,1716051064381,-500.0,0.00029041,2]
[327415545,1716051064390,-500.0,0.00029041,2]
[327415546,1716051064399,-500.0,0.00029041,2]
[327415547,1716051064409,-500.0,0.00029041,2]
[327415548,1716051064419,-548.44,0.00029041,2]
[327415549,1716051064428,-500.0,0.00029041,2]
[327415550,1716051064438,-3328.5,0.00029041,2]
[327415551,1716051064447,-500.0,0.00029041,2]
[327415552,1716051064458,-1552.68,0.00029041,2]
[327415553,1716051064469,-1494.38,0.00029041,2]
[327415554,1716051064479,-500.0,0.00029041,2]
[327415555,1716051064488,-500.0,0.00029041,2]
[327415556,1716051064498,-500.0,0.00029041,2]
[327415557,1716051064507,-1121.32,0.00029041,2]
[327415558,1716051064517,-500.0,0.00029041,2]
[327415559,1716051064527,-500.0,0.00029041,2]
[327415560,1716051064537,-500.0,0.00029041,2]
[327415561,1716051064547,-182.30451384,0.00029041,2]
[327415562,1716051064557,-500.0,0.00029041,2]
[327415563,1716051064566,-500.0,0.00029041,2]
[327415564,1716051064576,-500.0,0.00029041,2]
[327415565,1716051064585,-2782.31,0.00029041,2]
[327415566,1716051064595,-966.21,0.00029041,2]
[327415567,1716051064604,-730.87,0.00029041,2]
[327415568,1716051064614,-500.0,0.00029041,2]
[327415569,1716051064624,-500.0,0.00029041,2]
[327415570,1716051064634,-579.61,0.00029041,2]
[327415571,1716051064646,-692.9,0.00029041,2]
[327415572,1716051064655,-500.0,0.00029041,2]
[327415573,1716051064665,-500.0,0.00029041,2]
[327415574,1716051064769,-500.0,0.00029041,2]
[327415575,1716051064780,-500.0,0.00029041,2]
[327415576,1716051064791,-500.0,0.00029041,2]
[327415577,1716051064801,-521.18,0.00029041,2]
[327415578,1716051064810,-500.0,0.00029315,2]
[327415579,1716051064819,-500.0,0.00029315,2]
[327415580,1716051064829,-500.0,0.00029315,2]
[327415581,1716051064839,-500.0,0.00029315,2]
[327415582,1716051064849,-500.0,0.00029315,2]
[327415583,1716051064858,-500.0,0.00029315,2]
[327415584,1716051064867,-500.0,0.00029315,2]
[327415585,1716051064877,-500.0,0.00029315,2]
[327415586,1716051064887,-500.0,0.00029315,2]
[327415587,1716051064896,-516.36,0.00029315,2]
[327415588,1716051064906,-372.48,0.00029315,2]
[327415589,1716051064915,-500.0,0.00029315,2]
[327415590,1716051064925,-500.0,0.00029315,2]
[327415591,1716051064935,-597.8,0.00029315,2]
[327415592,1716051064944,-500.0,0.00029315,2]
[327415593,1716051064953,-500.0,0.00029315,2]
[327415594,1716051064963,-500.0,0.00029315,2]
[327415595,1716051064973,-500.0,0.00029315,2]
[327415596,1716051064983,-583.73,0.00029315,2]
[327415597,1716051064992,-500.0,0.00029315,2]
[327415598,1716051065002,-500.0,0.00029315,2]
[327415599,1716051065015,-500.0,0.00029315,2]
[327415600,1716051065026,-538.29173157,0.00029315,2]
[327415601,1716051065035,-500.0,0.00029315,2]
[327415602,1716051065046,-500.0,0.00029315,2]
[327415603,1716051065057,-1320.18,0.00029315,2]
[327415604,1716051065067,-500.0,0.00029315,2]
[327415605,1716051065077,-500.0,0.00029315,2]
[327415606,1716051065087,-500.0,0.00029315,2]
[327415607,1716051065098,-500.0,0.00029315,2]
[327415608,1716051065107,-500.0,0.00029315,2]
[327415609,1716051065117,-532.73,0.00029315,2]
[327415610,1716051065126,-500.0,0.00029315,2]
[327415611,1716051065136,-500.0,0.00029315,2]
[327415612,1716051065146,-500.0,0.00029315,2]
[327415613,1716051065156,-1744.41,0.00029315,2]
[327415614,1716051065166,-500.0,0.00029315,2]
[327415615,1716051065176,-1203.09,0.00029315,2]
[327415616,1716051065186,-578.82,0.00029315,2]
[327415617,1716051065196,-500.0,0.00029315,2]
[327415618,1716051065206,-2662.84,0.00029315,2]
[327415619,1716051065216,-996.79,0.00029315,2]
[327415620,1716051065226,-500.0,0.00029315,2]
[327415621,1716051065237,-916.77,0.00029315,2]
[327415622,1716051065248,-500.0,0.00029315,2]
[327415623,1716051065258,-500.0,0.00029315,2]
[327415624,1716051065268,-927.89,0.00029315,2]
[327415625,1716051065278,-500.0,0.00029315,2]
[327415626,1716051065288,-500.0,0.00029315,2]
[327415627,1716051065298,-1501.66,0.00029315,2]
[327415628,1716051065308,-500.0,0.00029315,2]
[327415629,1716051065317,-556.91,0.00029315,2]
[327415630,1716051065327,-500.0,0.00029315,2]
[327415631,1716051065337,-500.0,0.00029315,2]
[327415632,1716051065347,-600.4,0.00029315,2]
[327415633,1716051065357,-500.0,0.00029315,2]
[327415634,1716051065367,-500.0,0.00029315,2]
[327415635,1716051065377,-606.95,0.00029315,2]
[327415636,1716051065387,-947.18,0.00029315,2]
[327415637,1716051065397,-500.0,0.00029315,2]
[327415638,1716051065407,-500.0,0.00029315,2]
[327415639,1716051065418,-500.0,0.00029315,2]
[327415640,1716051065430,-801.26,0.00029315,2]
[327415641,1716051065440,-500.0,0.00029315,2]
[327415642,1716051065450,-634.36,0.00029315,2]
[327415643,1716051065463,-500.0,0.00029315,2]
[327415644,1716051065474,-500.0,0.00029315,2]
[327415645,1716051065486,-500.0,0.00029315,2]
[327415646,1716051065496,-451.44,0.00029315,2]
[327415647,1716051065508,-500.0,0.00029315,2]
[327415648,1716051065517,-500.0,0.00029315,2]
[327415649,1716051065527,-500.0,0.00029315,2]
[327415650,1716051065539,-647.38,0.00029315,2]
[327415651,1716051065549,-1383.44,0.00029315,2]
[327415652,1716051065558,-338.2,0.00029315,2]
[327415653,1716051065568,-512.7,0.00029315,2]
[327415654,1716051065578,-500.0,0.00029315,2]
[327415655,1716051065588,-575.76,0.00029315,2]
[327415656,1716051065599,-500.0,0.00029315,2]
[327415657,1716051065608,-573.68,0.00029315,2]
[327415658,1716051065618,-500.0,0.00029315,2]
[327415659,1716051065627,-500.0,0.00029315,2]
[327415660,1716051065638,-3328.5,0.00029315,2]
[327415661,1716051065656,-500.0,0.00029315,2]
[327415662,1716051065674,-1552.68,0.00029315,2]
[327415663,1716051065688,-1494.38,0.00029315,2]
[327415664,1716051065705,-500.0,0.00029315,2]
[327415665,1716051065723,-500.0,0.00029315,2]
[327415666,1716051065742,-500.0,0.00029315,2]
[327415667,1716051065758,-1121.32,0.00029315,2]
[327415668,1716051065773,-500.0,0.00029315,2]
[327415669,1716051065788,-500.0,0.00029315,2]
[327415670,1716051065803,-500.0,0.00029315,2]
[327415671,1716051065817,-500.0,0.00029315,2]
[327415672,1716051065832,-500.0,0.00029315,2]
[327415673,1716051065848,-500.0,0.00029315,2]
[327415674,1716051065867,-2782.31,0.00029315,2]
[327415675,1716051065882,-966.21,0.00029315,2]
[327415676,1716051065894,-730.87,0.00029315,2]
[327415677,1716051065908,-347.36,0.00029315,2]
[327415678,1716051065925,-500.0,0.00029315,2]
[327415679,1716051065938,-579.61,0.00029315,2]
[327415680,1716051065954,-692.9,0.00029315,2]
[327415681,1716051065967,-500.0,0.00029315,2]
[327415682,1716051065981,-500.0,0.00029315,2]
[327415683,1716051065995,-500.0,0.00029315,2]
[327415684,1716051066009,-1000.0,0.000295,2]
[327415685,1716051066022,-435.1,0.00029547,2]
[327415686,1716051066035,-500.0,0.00029589,2]
[327415687,1716051066048,-500.0,0.00029589,2]
[327415688,1716051066060,-500.0,0.00029589,2]
[327415689,1716051066073,-500.0,0.00029589,2]
[327415690,1716051066086,-500.0,0.00029589,2]
[327415691,1716051066099,-500.0,0.00029589,2]
[327415692,1716051066112,-500.0,0.00029589,2]
[327415693,1716051066125,-500.0,0.00029589,2]
[327415694,1716051066138,-500.0,0.00029589,2]
[327415695,1716051066151,-500.0,0.00029589,2]
[327415696,1716051066164,-597.8,0.00029589,2]
[327415697,1716051066177,-500.0,0.00029589,2]
[327415698,1716051066190,-500.0,0.00029589,2]
[327415699,1716051066203,-500.0,0.00029589,2]
[327415700,1716051066216,-310.96,0.00029589,2]
[327415701,1716051066230,-583.73,0.00029589,2]
[327415702,1716051066243,-484.11962534,0.00029589,2]
[327415703,1716051066257,-500.0,0.00029589,2]
[327415704,1716051066269,-500.0,0.00029589,2]
[327415705,1716051066282,-500.0,0.00029589,2]
[327415706,1716051066296,-500.0,0.00029589,2]
[327415707,1716051066309,-1320.18,0.00029589,2]
[327415708,1716051066322,-372.92,0.00029589,2]
[327415709,1716051066335,-500.0,0.00029589,2]
[327415710,1716051066349,-377.08,0.00029589,2]
[327415711,1716051066364,-500.0,0.00029589,2]
[327415712,1716051066377,-204.46,0.00029589,2]
[327415713,1716051066392,-532.73,0.00029589,2]
[327415714,1716051066406,-219.9,0.00029589,2]
[327415715,1716051066419,-255.44246762,0.00029589,2]
[327415716,1716051066433,-500.0,0.00029589,2]
[327415717,1716051066447,-1744.41,0.00029589,2]
[327415718,1716051066461,-500.0,0.00029589,2]
[327415719,1716051066476,-1203.09,0.00029589,2]
[327415720,1716051066490,-578.82,0.00029589,2]
[327415721,1716051066504,-500.0,0.00029589,2]
[327415722,1716051066518,-2662.84,0.00029589,2]
[327415723,1716051066532,-996.79,0.00029589,2]
[327415724,1716051066547,-330.65,0.00029589,2]
[327415725,1716051066561,-916.77,0.00029589,2]
[327415726,1716051066575,-500.0,0.00029589,2]
[327415727,1716051066590,-500.0,0.00029589,2]
[327415728,1716051066602,-927.89,0.00029589,2]
[327415729,1716051066612,-500.0,0.00029589,2]
[327415730,1716051066621,-500.0,0.00029589,2]
[327415731,1716051066631,-1501.66,0.00029589,2]
[327415732,1716051066641,-500.0,0.00029589,2]
[327415733,1716051066650,-556.91,0.00029589,2]
[327415734,1716051066660,-500.0,0.00029589,2]
[327415735,1716051066669,-500.0,0.00029589,2]
[327415736,1716051066678,-500.0,0.00029589,2]
[327415737,1716051066688,-500.0,0.00029589,2]
[327415738,1716051066698,-947.18,0.00029589,2]
[327415739,1716051066708,-500.0,0.00029589,2]
[327415740,1716051066718,-500.0,0.00029589,2]
[327415741,1716051066728,-500.0,0.00029589,2]
[327415742,1716051066738,-801.26,0.00029589,2]
[327415743,1716051066748,-500.0,0.00029589,2]
[327415744,1716051066943,-500.0,0.00029589,2]
[327415745,1716051066960,-500.0,0.00029589,2]
[327415746,1716051066971,-268.36,0.00029589,2]
[327415747,1716051066980,-500.0,0.00029589,2]
[327415748,1716051066990,-500.0,0.00029589,2]
[327415749,1716051067000,-216.96,0.00029589,2]
[327415750,1716051067010,-647.38,0.00029589,2]
[327415751,1716051067019,-1383.44,0.00029589,2]
[327415752,1716051067029,-512.7,0.00029589,2]
[327415753,1716051067039,-500.0,0.00029589,2]
[327415754,1716051067048,-575.76,0.00029589,2]
[327415755,1716051067057,-546.8,0.00029589,2]
[327415756,1716051067066,-500.0,0.00029589,2]
[327415757,1716051067076,-500.0,0.00029589,2]
[327415758,1716051067085,-3328.5,0.00029589,2]
[327415759,1716051067095,-500.0,0.00029589,2]
[327415760,1716051067105,-1552.68,0.00029589,2]
[327415761,1716051067115,-1494.38,0.00029589,2]
[327415762,1716051067126,-500.0,0.00029589,2]
[327415763,1716051067136,-500.0,0.00029589,2]
[327415764,1716051067146,-500.0,0.00029589,2]
[327415765,1716051067155,-1121.32,0.00029589,2]
[327415766,1716051067164,-500.0,0.00029589,2]
[327415767,1716051067173,-500.0,0.00029589,2]
[327415768,1716051067183,-500.0,0.00029589,2]
[327415769,1716051067193,-500.0,0.00029589,2]
[327415770,1716051067203,-500.0,0.00029589,2]
[327415771,1716051067212,-500.0,0.00029589,2]
[327415772,1716051067222,-2782.31,0.00029589,2]
[327415773,1716051067231,-966.21,0.00029589,2]
[327415774,1716051067241,-730.87,0.00029589,2]
[327415775,1716051067251,-196.84,0.00029589,2]
[327415776,1716051067260,-692.9,0.00029589,2]
[327415777,1716051067270,-579.61,0.00029589,2]
[327415778,1716051067279,-500.0,0.00029589,2]
[327415779,1716051067289,-313.64,0.00029589,2]
[327415780,1716051067299,-500.0,0.00029589,2]
[327415781,1716051067308,-2000.0,0.00029862,2]
[327415782,1716051067317,-200.0,0.00029862,2]
[327415783,1716051067327,-500.0,0.00029863,2]
[327415784,1716051067337,-500.0,0.00029863,2]
[327415785,1716051067346,-500.0,0.00029863,2]
[327415786,1716051067356,-402.25,0.00029863,2]
[327415787,1716051067366,-500.0,0.00029863,2]
[327415788,1716051067375,-500.0,0.00029863,2]
[327415789,1716051067385,-500.0,0.00029863,2]
[327415790,1716051067394,-500.0,0.00029863,2]
[327415791,1716051067404,-500.0,0.00029863,2]
[327415792,1716051067413,-500.0,0.00029863,2]
[327415793,1716051067423,-597.8,0.00029863,2]
[327415794,1716051067432,-500.0,0.00029863,2]
[327415795,1716051067443,-500.0,0.00029863,2]
[327415796,1716051067452,-500.0,0.00029863,2]
[327415797,1716051067466,-583.73,0.00029863,2]
[327415798,1716051067475,-500.0,0.00029863,2]
[327415799,1716051067485,-317.52,0.00029863,2]
[327415800,1716051067495,-500.0,0.00029863,2]
[327415801,1716051067507,-500.0,0.00029863,2]
[327415802,1716051067517,-1320.18,0.00029863,2]
[327415803,1716051067526,-500.0,0.00029863,2]
[327415804,1716051067536,-364.36,0.00029863,2]
[327415805,1716051067548,-532.73,0.00029863,2]
[327415806,1716051067559,-500.0,0.00029863,2]
[327415807,1716051067568,-1744.41,0.00029863,2]
[327415808,1716051067578,-1203.09,0.00029863,2]
[327415809,1716051067587,-578.82,0.00029863,2]
[327415810,1716051067597,-500.0,0.00029863,2]
[327415811,1716051067607,-2662.84,0.00029863,2]
[327415812,1716051067617,-996.79,0.00029863,2]
[327415813,1716051067626,-916.77,0.00029863,2]
[327415814,1716051067636,-500.0,0.00029863,2]
[327415815,1716051067646,-500.0,0.00029863,2]
[327415816,1716051067655,-927.89,0.00029863,2]
[327415817,1716051067665,-500.0,0.00029863,2]
[327415818,1716051067674,-500.0,0.00029863,2]
[327415819,1716051067684,-1501.66,0.00029863,2]
[327415820,1716051067694,-500.0,0.00029863,2]
[327415821,1716051067703,-556.91,0.00029863,2]
[327415822,1716051067713,-500.0,0.00029863,2]
[327415823,1716051067723,-500.0,0.00029863,2]
[327415824,1716051067732,-500.0,0.00029863,2]
[327415825,1716051067742,-277.97,0.00029863,2]
[327415826,1716051067752,-947.18,0.00029863,2]
[327415827,1716051067762,-463.56,0.00029863,2]
[327415828,1716051067771,-500.0,0.00029863,2]
[327415829,1716051067781,-267.1,0.00029863,2]
[327415830,1716051067792,-801.26,0.00029863,2]
[327415831,1716051067801,-500.0,0.00029863,2]
[327415832,1716051067811,-500.0,0.00029863,2]
[327415833,1716051067821,-500.0,0.00029863,2]
[327415834,1716051067831,-500.0,0.00029863,2]
[327415835,1716051067841,-500.0,0.00029863,2]
[327415836,1716051067852,-647.38,0.00029863,2]
[327415837,1716051067862,-1383.44,0.00029863,2]
[327415838,1716051067872,-512.7,0.00029863,2]
[327415839,1716051067882,-500.0,0.00029863,2]
[327415840,1716051067891,-575.76,0.00029863,2]
[327415841,1716051067902,-500.0,0.00029863,2]
[327415842,1716051067912,-500.0,0.00029863,2]
[327415843,1716051067922,-3328.5,0.00029863,2]
[327415844,1716051067931,-500.0,0.00029863,2]
[327415845,1716051067941,-1552.68,0.00029863,2]
[327415846,1716051067951,-1494.38,0.00029863,2]
[327415847,1716051067961,-500.0,0.00029863,2]
[327415848,1716051067971,-500.0,0.00029863,2]
[327415849,1716051067980,-500.0,0.00029863,2]
[327415850,1716051067990,-1121.32,0.00029863,2]
[327415851,1716051068000,-354.12,0.00029863,2]
[327415852,1716051068010,-151.41,0.00029863,2]
[327415853,1716051068020,-500.0,0.00029863,2]
[327415854,1716051068030,-500.0,0.00029863,2]
[327415855,1716051068040,-500.0,0.00029863,2]
[327415856,1716051068050,-500.0,0.00029863,2]
[327415857,1716051068059,-2782.31,0.00029863,2]
[327415858,1716051068069,-966.21,0.00029863,2]
[327415859,1716051068078,-730.87,0.00029863,2]
[327415860,1716051068088,-692.9,0.00029863,2]
[327415861,1716051068099,-579.61,0.00029863,2]
[327415862,1716051068109,-500.0,0.00029863,2]
[327415863,1716051068119,-500.0,0.00029863,2]
[327415864,1716051068128,-8556.11546021,0.00029937,2]
[327415865,1716051068138,-151.0,0.00029974,4]
[327415866,1716051068148,-190.22037928,0.0003,2]
[327415867,1716051068158,-23816.76025954,0.0003,3]
[327415868,1716051068168,-2592.82565918,0.0003,14]
[327415869,1716051068386,-500.0,0.00027397,2]
[327415870,1716051068395,-159.49434082,0.0003,14]